bitfinex/quotes_SOLUSD_20250718
["timestamp","ask_amount","ask_price","bid_price","bid_amount"]
[1752822950900,30.46,182.83,182.81,12.38566313]
[1752822951295,30.46,182.83,182.81,11.73566313]
[1752822951498,11.73566313,182.89,182.82,0.7]
[1752822951807,42.17566313,182.88,182.82,12.43566313]
[1752822951999,30.44,182.88,182.82,0.7]
[1752822952694,30.44,182.88,182.84,11.73566313]
[1752822952879,30.44,182.88,182.85,0.7]
[1752822953194,30.44,182.88,182.86,12.43566313]
[1752822953396,30.44,182.88,182.87,12.43566313]
[1752822953726,0.06,182.92,182.87,17.90402863]
[1752822954005,30.5,182.92,182.89,11.73566313]
[1752822954181,30.5,182.92,182.87,5.4683655]
[1752822954382,30.5,182.92,182.89,0.7]
[1752822954608,30.5,182.92,182.89,12.43566313]
[1752822955279,30.5,182.92,182.87,5.4683655]
[1752822955481,42.92566313,182.92,182.86,11.73566313]
[1752822955905,31.19,182.92,182.87,11.73566313]
[1752822956297,31.19,182.92,182.88,11.73566313]
[1752822956606,31.19,182.92,182.87,12.43566313]
[1752822956815,31.19,182.92,182.86,0.7]
[1752822956816,42.92566313,182.92,182.86,0.7]
[1752822957112,42.92566313,182.92,182.86,12.43566313]
[1752822957311,31.19,182.92,182.87,11.73566313]
[1752822957604,30.5,182.92,182.89,11.73566313]
[1752822958108,31.19,182.92,182.87,12.43566313]
[1752822958307,0.69,182.91,182.87,11.73566313]
[1752822958505,30.5,182.92,182.89,11.73566313]
[1752822958696,30.5,182.92,182.88,12.43566313]
[1752822959007,42.92566313,182.92,182.86,17.90420325]
[1752822959384,48.39268907,182.92,182.86,12.43566313]
[1752822959586,42.92566313,182.92,182.86,17.9042479]
[1752822959792,31.19,182.92,182.87,11.73566313]
[1752822959994,35.96706755,182.92,182.84,31.4689916]
[1752822960292,11.73566313,182.87,182.8,2.2801]
[1752822960504,11.73566313,182.85,182.79,11.76566313]
[1752822960681,11.73566313,182.83,182.79,0.03]
[1752822961110,12.42566313,182.83,182.79,0.03]
[1752822961484,17.89522501,182.83,182.79,0.03]
[1752822962309,34.67990898,182.83,182.79,0.03]
[1752822962716,22.94424585,182.83,182.79,0.03]
[1752822962891,34.67990898,182.83,182.79,0.03]
[1752822963606,41.13760898,182.83,182.79,0.03]
[1752822965492,54.8115137,182.83,182.79,0.03]
[1752822965710,28.5203471,182.8,182.79,0.03]
[1752822965917,59.0203471,182.8,182.79,0.03]
[1752822966121,59.7103471,182.8,182.79,0.03]
[1752822966311,47.97468397,182.8,182.79,1e-08]
[1752822966694,42.92566313,182.8,182.79,1e-08]
[1752822966914,48.39612264,182.8,182.79,1e-08]
[1752822967302,36.66045951,182.8,182.79,1e-08]
[1752822967502,48.39612264,182.8,182.79,1e-08]
[1752822967810,42.92566313,182.8,182.79,1e-08]
[1752822968009,48.39612264,182.8,182.79,1e-08]
[1752822968912,65.18080661,182.8,182.79,1e-08]
[1752822970113,31.19,182.8,182.79,1e-08]
[1752822970321,42.92566313,182.8,182.79,1e-08]
[1752822970511,42.23566313,182.8,182.79,1e-08]
[1752822970703,30.5,182.8,182.79,1e-08]
[1752822970906,42.23566313,182.8,182.79,1e-08]
[1752822971113,31.19,182.8,182.79,1e-08]
[1752822971311,30.5,182.8,182.79,1e-08]
[1752822972216,42.23566313,182.8,182.79,1e-08]
[1752822972521,42.92566313,182.8,182.79,1e-08]
[1752822972727,42.23566313,182.8,182.79,1e-08]
[1752822972900,30.5,182.8,182.79,1e-08]
[1752822973103,30.5,182.8,182.79,12.43566314]
[1752822973329,30.5,182.8,182.79,0.70000001]
[1752822974227,0.69,182.85,182.79,0.70000001]
[1752822974414,30.62,182.84,182.79,12.43566314]
[1752822974612,42.35566313,182.84,182.79,0.70000001]
[1752822974812,42.35566313,182.84,182.8,0.7]
[1752822975123,11.73566313,182.82,182.79,1e-08]
[1752822975306,30.6,182.81,182.79,1e-08]
[1752822975505,30.6,182.81,182.79,0.70000001]
[1752822976816,30.6,182.81,182.8,0.7]
[1752822977133,30.6,182.81,182.8,6.17045951]
[1752822977315,11.73566313,182.85,182.8,6.17045951]
[1752822977519,11.73566313,182.86,182.81,0.7]
[1752822977728,30.54,182.85,182.82,0.7]
[1752822977927,30.54,182.85,182.81,11.73566313]
[1752822978106,30.54,182.85,182.8,5.47045951]
[1752822978107,30.54,182.85,182.83,12.43566313]
[1752822978307,5.52689632,182.92,182.84,12.43566313]
[1752822978520,42.27566313,182.91,182.85,11.73566313]
[1752822978832,11.73566313,182.89,182.84,0.7]
[1752822979036,30.54,182.88,182.84,6.16922673]
[1752822979331,12.42566313,182.87,182.81,17.9058234]
[1752822979536,12.42566313,182.87,182.81,0.7]
[1752822979537,11.73566313,182.86,182.81,0.7]
[1752822979837,0.75,182.92,182.81,0.7]
[1752822980037,30.54,182.91,182.87,11.73566313]
[1752822980240,30.54,182.91,182.87,0.7]
[1752822980421,42.96566313,182.91,182.84,0.7]
[1752822980938,30.54,182.91,182.86,11.73566313]
[1752822981124,30.54,182.91,182.87,17.90402863]
[1752822981325,30.54,182.91,182.88,12.40566313]
[1752822981526,30.54,182.91,182.88,0.67]
[1752822981733,42.27566313,182.91,182.86,5.46863319]
[1752822981927,12.40566313,182.9,182.85,0.67]
[1752822982162,0.67,182.9,182.84,5.46926274]
[1752822982332,11.73566313,182.87,182.82,5.46983247]
[1752822982542,31.14,182.86,182.82,5.46983247]
[1752822982841,31.14,182.86,182.82,6.13983247]
[1752822983019,31.14,182.86,182.83,6.13927238]
[1752822983220,43.54566313,182.86,182.8,17.20611211]
[1752822983421,11.73566313,182.85,182.8,5.47044898]
[1752822983618,31.14,182.86,182.8,5.47044898]
[1752822983815,11.73566313,182.84,182.79,1e-08]
[1752822984020,0.67,182.85,182.79,17.8763827]
[1752822984021,31.16,182.83,182.79,17.8763827]
[1752822984323,11.73566313,182.81,182.79,1e-08]
[1752822984533,31.14,182.8,182.79,1e-08]
[1752822986049,42.87566313,182.8,182.79,1e-08]
[1752822986236,43.54566313,182.8,182.79,1e-08]
[1752822986622,31.14,182.8,182.79,1e-08]
[1752822987548,42.87566313,182.8,182.79,1e-08]
[1752822988138,31.14,182.8,182.79,1e-08]
[1752822988444,42.87566313,182.8,182.79,1e-08]
[1752822988621,49.01612264,182.8,182.79,1e-08]
[1752822988823,65.80080661,182.8,182.79,1e-08]
[1752822989830,72.12930661,182.8,182.79,1e-08]
[1752822990037,102.12930661,182.8,182.79,1e-08]
[1752822990220,90.39364348,182.8,182.79,1e-08]
[1752822990421,61.81,182.8,182.79,1e-08]
[1752822990661,61.14,182.8,182.79,1e-08]
[1752822990829,58.5203471,182.8,182.79,1e-08]
[1752822991034,95.74080661,182.8,182.79,1e-08]
[1752822991551,65.74080661,182.8,182.79,1e-08]
[1752822991858,28.5203471,182.79,182.78,0.03]
[1752822992230,29.1903471,182.79,182.78,0.03]
[1752822992938,59.1903471,182.79,182.78,0.03]
[1752822993151,64.66110589,182.79,182.78,0.03]
[1752822993637,30.0,182.79,182.78,0.03]
[1752822994135,41.73566313,182.79,182.78,0.03]
[1752822994334,59.1903471,182.79,182.78,0.03]
[1752822994661,30.0,182.79,182.78,0.03]
[1752822995029,30.0,182.79,182.78,0.7]
[1752822995330,72.75566313,182.79,182.78,0.03]
[1752822996045,65.68110589,182.79,182.78,0.03]
[1752822996239,48.89642192,182.79,182.78,0.03]
[1752822996436,65.68110589,182.79,182.78,0.03]
[1752822996645,22.92544276,182.79,182.78,0.03]
[1752822996858,53.90544276,182.79,182.78,0.03]
[1752822997045,65.64110589,182.79,182.78,0.03]
[1752822997361,72.71566313,182.79,182.78,0.03]
[1752822997653,30.98,182.79,182.78,0.03]
[1752822998154,42.71566313,182.79,182.78,0.03]
[1752822998358,6.13986106,182.82,182.78,0.03]
[1752822998359,0.67,182.85,182.78,0.7]
[1752822998565,0.67,182.85,182.78,0.03]
[1752822998566,11.73566313,182.81,182.78,0.03]
[1752822998728,30.96,182.8,182.78,0.03]
[1752822998934,30.96,182.79,182.78,0.03]
[1752822999364,42.69566313,182.79,182.78,0.03]
[1752822999657,43.36566313,182.79,182.78,0.03]
[1752822999869,65.62110589,182.79,182.78,0.03]
[1752823000031,48.83642192,182.79,182.78,0.03]
[1752823000229,65.62110589,182.79,182.78,0.03]
[1752823000746,67.10075879,182.79,182.78,0.03]
[1752823000956,60.96,182.79,182.78,0.03]
[1752823001166,78.83642192,182.79,182.78,0.03]
[1752823001533,72.69566313,182.79,182.78,0.03]
[1752823001943,78.83642192,182.79,182.78,0.03]
[1752823002650,60.96,182.79,182.78,0.03]
[1752823002852,72.69566313,182.79,182.78,0.03]
[1752823003050,30.0,182.79,182.78,0.03]
[1752823003256,60.88,182.79,182.78,0.7]
[1752823003558,60.88,182.79,182.78,0.03]
[1752823003939,60.88,182.79,182.78,0.7]
[1752823004353,30.0,182.79,182.78,0.7]
[1752823004956,30.86,182.81,182.78,0.7]
[1752823005255,0.06,182.84,182.79,11.73566313]
[1752823005455,0.06,182.84,182.8,0.67]
[1752823005456,30.82,182.83,182.8,0.67]
[1752823005653,30.82,182.83,182.78,5.5008195]
[1752823005857,30.82,182.83,182.81,0.67]
[1752823006062,30.0,182.82,182.81,0.67]
[1752823006476,30.82,182.83,182.81,0.67]
[1752823007150,0.06,182.84,182.82,0.67]
[1752823007352,30.0,182.83,182.81,5.4701154]
[1752823007569,30.0,182.83,182.82,11.73566313]
[1752823007752,30.0,182.83,182.82,0.67]
[1752823007951,30.0,182.83,182.82,12.40566313]
[1752823008174,30.0,182.83,182.82,0.67]
[1752823008342,30.0,182.83,182.82,12.40566313]
[1752823008542,30.0,182.83,182.82,17.87552419]
[1752823008965,1e-08,182.83,182.82,19.53562419]
[1752823009171,1e-08,182.83,182.82,42.33830816]
[1752823009352,30.78,182.91,182.83,16.78468397]
[1752823009656,2.91079109,182.96,182.85,11.73566313]
[1752823009847,0.67,182.95,182.88,11.73566313]
[1752823010050,11.79566313,182.92,182.82,26.82261372]
[1752823010248,0.06,182.92,182.87,11.73566313]
[1752823010576,0.06,182.92,182.83,26.0]
[1752823010577,0.06,182.92,182.9,11.73566313]
[1752823011050,0.06,182.92,182.84,19.14241959]
[1752823011453,11.79566313,182.92,182.84,5.46926274]
[1752823011674,0.06,182.92,182.87,11.73566313]
[1752823011855,0.06,182.92,182.9,11.73566313]
[1752823012061,0.06,182.92,182.84,19.14241959]
[1752823012260,11.79566313,182.92,182.86,11.73566313]
[1752823012450,0.06,182.92,182.84,19.14241959]
[1752823012651,11.73566313,182.89,182.82,7.6781]
[1752823012976,0.75,182.92,182.8,5.47026827]
[1752823012977,0.69,182.88,182.8,5.47026827]
[1752823013178,30.7,182.9,182.8,5.47026827]
[1752823013179,11.73566313,182.89,182.83,11.73566313]
[1752823013348,11.73566313,182.88,182.8,5.47026827]
[1752823013682,11.73566313,182.85,182.78,13.39801646]
[1752823014051,11.73566313,182.83,182.78,7.9272]
[1752823014246,0.69,182.82,182.78,0.03]
[1752823014669,11.73566313,182.84,182.78,11.76566313]
[1752823015184,11.73566313,182.83,182.78,11.76566313]
[1752823015577,36.14868151,182.86,182.78,0.03]
[1752823015756,11.73566313,182.84,182.78,17.23672123]
[1752823015950,11.73566313,182.85,182.8,11.73566313]
[1752823016146,12.42566313,182.84,182.78,5.5010581]
[1752823016378,0.69,182.84,182.78,0.03]
[1752823016565,42.78468397,182.83,182.78,0.03]
[1752823016782,11.73566313,182.79,182.78,0.03]
[1752823017155,31.33,182.82,182.78,0.03]
[1752823017378,11.73566313,182.81,182.78,0.03]
[1752823017570,11.73566313,182.79,182.78,0.03]
[1752823017963,12.42566313,182.79,182.78,0.03]
[1752823018164,6.16075879,182.79,182.78,0.03]
[1752823018372,12.42566313,182.79,182.78,0.03]
[1752823018552,11.73566313,182.8,182.78,0.03]
[1752823018965,30.64,182.82,182.78,0.03]
[1752823019166,0.69,182.83,182.78,0.03]
[1752823019383,11.73566313,182.82,182.78,0.03]
[1752823019961,11.73566313,182.82,182.78,5.5010581]
[1752823020158,11.73566313,182.82,182.78,0.03]
[1752823020371,12.42566313,182.82,182.78,0.03]
[1752823020778,0.69,182.81,182.78,0.03]
[1752823021080,11.73566313,182.79,182.78,0.03]
[1752823021287,11.73566313,182.79,182.75,0.03]
[1752823021288,32.1303,182.79,182.75,0.03]
[1752823021579,0.69,182.82,182.76,5.47165681]
[1752823021782,0.69,182.82,182.77,11.73566313]
[1752823021993,42.98566313,182.84,182.79,11.73566313]
[1752823022189,11.73566313,182.83,182.77,5.47128918]
[1752823022357,11.73566313,182.81,182.75,0.03]
[1752823022557,11.73566313,182.77,182.75,0.03]
[1752823022958,31.23,182.8,182.78,0.03]
[1752823023164,30.54,182.8,182.78,0.03]
[1752823023354,0.06,182.82,182.78,0.03]
[1752823023568,0.06,182.82,182.79,11.73566313]
[1752823023861,0.06,182.82,182.8,11.73566313]
[1752823024058,0.06,182.82,182.81,11.73566313]
[1752823024262,0.06,182.82,182.81,11.77566313]
[1752823024674,0.06,182.82,182.81,28.5603471]
[1752823024876,0.06,182.91,182.81,11.77566313]
[1752823025079,11.79566313,182.91,182.82,0.04]
[1752823025268,11.79566313,182.91,182.85,11.73566313]
[1752823025469,0.06,182.91,182.86,11.73566313]
[1752823025680,0.06,182.91,182.87,11.73566313]
[1752823026181,0.06,182.91,182.88,5.46806649]
[1752823026375,0.06,182.91,182.87,17.20396821]
[1752823026580,0.06,182.91,182.88,11.73566313]
[1752823026966,0.06,182.91,182.87,5.50830508]
[1752823027168,0.06,182.91,182.87,17.20396821]
[1752823027471,0.06,182.91,182.89,11.73566313]
[1752823027873,0.06,182.91,182.9,11.73566313]
[1752823028070,0.06,182.91,182.9,17.20313169]
[1752823028463,0.06,182.91,182.9,17.24313169]
[1752823028663,0.06,182.92,182.91,16.78468397]
[1752823028889,0.02,182.92,182.91,16.78468397]
[1752823029069,0.06,183.0,182.94,26.0]
[1752823029582,0.06,183.0,182.93,30.42]
[1752823029881,0.06,183.0,182.96,11.73566313]
[1752823030095,0.06,183.0,182.98,11.73566313]
[1752823030384,0.06,183.0,182.99,11.73566313]
[1752823030902,0.06,183.0,182.96,31.46539425]
[1752823031066,0.06,183.0,182.98,11.73566313]
[1752823031403,0.06,183.0,182.99,11.73566313]
[1752823031908,0.06,183.0,182.99,28.5203471]
[1752823032065,0.06,183.0,182.99,59.98512659]
[1752823032389,0.06,183.0,182.99,43.20044262]
[1752823032591,0.06,183.0,182.99,59.98512659]
[1752823032907,0.1,183.01,183.0,26.0]
[1752823033193,0.1,183.01,183.0,37.73566313]
[1752823033572,0.1,183.01,182.97,30.34]
[1752823033793,0.1,183.01,183.0,11.73566313]
[1752823034001,0.1,183.01,182.97,11.73566313]
[1752823034166,0.1,183.01,182.94,31.4659923]
[1752823034365,12.42566313,183.0,182.94,42.05566313]
[1752823034589,0.69,182.99,182.91,11.73566313]
[1752823034765,0.69,182.99,182.93,11.73566313]
[1752823034964,11.73566313,182.97,182.91,30.32]
[1752823035181,0.69,182.99,182.91,30.32]
[1752823035182,12.42566313,182.99,182.93,11.73566313]
[1752823035385,5.56419814,183.01,182.9,5.46724815]
[1752823035687,0.69,182.99,182.93,11.73566313]
[1752823035872,11.73566313,182.97,182.91,30.32]
[1752823036077,11.73566313,182.97,182.9,31.46724815]
[1752823036078,11.73566313,182.96,182.9,43.20291128]
[1752823036280,11.73566313,182.94,182.88,17.20345219]
[1752823036591,0.69,182.95,182.89,11.73566313]
[1752823036797,12.42566313,182.95,182.89,11.73566313]
[1752823037285,0.69,182.95,182.9,11.73566313]
[1752823037484,11.73566313,182.96,182.9,11.73566313]
[1752823037793,13.76045571,183.01,182.9,11.73566313]
[1752823037794,0.69,182.97,182.9,11.73566313]
[1752823037994,11.73566313,182.96,182.9,17.20303536]
[1752823038492,11.73566313,182.95,182.9,17.20303536]
[1752823038705,12.42566313,182.95,182.89,47.52339035]
[1752823039790,12.42566313,182.95,182.89,17.20339035]
[1752823040177,0.69,182.95,182.9,11.73566313]
[1752823040575,11.73566313,182.96,182.89,5.46772722]
[1752823040797,11.73566313,182.95,182.89,17.20339035]
[1752823040972,12.42566313,182.96,182.9,11.73566313]
[1752823041679,12.42566313,182.96,182.91,5.46716964]
[1752823041882,12.42566313,182.96,182.91,17.20283277]
[1752823042088,5.46503399,182.99,182.93,11.73566313]
[1752823042089,0.68,182.99,182.93,11.73566313]
[1752823042388,11.73566313,182.98,182.93,11.73566313]
[1752823042576,12.41566313,182.99,182.93,11.73566313]
[1752823042772,11.73566313,182.95,182.9,11.73566313]
[1752823042997,0.68,182.94,182.9,11.73566313]
[1752823043388,0.68,183.0,182.93,11.73566313]
[1752823043595,0.68,183.0,182.96,11.73566313]
[1752823044272,0.68,183.0,182.92,5.46687076]
[1752823044475,0.68,183.0,182.95,11.73566313]
[1752823044711,0.68,182.99,182.95,11.73566313]
[1752823045004,0.06,182.98,182.95,11.73566313]
[1752823045391,0.06,182.98,182.96,11.73566313]
[1752823045595,0.06,182.98,182.96,5.46567555]
[1752823046185,0.06,182.98,182.94,17.20163895]
[1752823046402,0.06,182.98,182.97,11.73566313]
[1752823047087,0.06,182.98,182.95,42.09566313]
[1752823047418,0.06,182.98,182.95,11.73566313]
[1752823047724,0.06,182.98,182.97,11.73566313]
[1752823048102,0.06,182.98,182.96,47.68133868]
[1752823048414,0.06,182.98,182.96,17.20133868]
[1752823048589,0.06,182.98,182.96,5.46567555]
[1752823049503,0.06,182.98,182.95,42.21566313]
[1752823049504,0.06,182.98,182.95,47.66157987]
[1752823050601,11.73566313,182.96,182.88,13.66993635]
[1752823050802,0.68,182.97,182.91,11.73566313]
[1752823051216,0.68,182.97,182.89,30.44]
[1752823051398,11.73566313,182.96,182.9,11.73566313]
[1752823051590,12.41566313,182.97,182.91,17.20283277]
[1752823052008,12.41566313,182.97,182.89,30.44]
[1752823052314,12.41566313,182.96,182.9,47.60307979]
[1752823052522,11.73566313,182.95,182.89,11.73566313]
[1752823052720,5.52514995,182.98,182.88,5.49793033]
[1752823052721,11.73566313,182.94,182.88,17.23359346]
[1752823052926,0.68,182.93,182.88,0.03]
[1752823053126,11.73566313,182.92,182.88,0.03]
[1752823053492,0.68,182.91,182.88,0.03]
[1752823055334,7.02113227,182.97,182.89,11.73566313]
[1752823055505,12.41566313,182.96,182.9,11.73566313]
[1752823055705,17.88147665,182.96,182.9,47.56307713]
[1752823055997,11.73566313,182.95,182.9,5.467414]
[1752823056203,0.68,182.94,182.9,47.56307713]
[1752823056906,5.46543007,182.97,182.9,47.56307713]
[1752823057121,6.14543007,182.97,182.91,11.73566313]
[1752823057321,12.41566313,182.97,182.92,11.73566313]
[1752823057526,0.68,182.96,182.91,5.46709232]
[1752823057826,0.68,182.95,182.92,11.73566313]
[1752823058003,0.68,182.95,182.91,17.20275545]
[1752823059126,0.68,182.95,182.92,11.73566313]
[1752823059511,0.06,182.98,182.92,11.73566313]
[1752823059709,11.79566313,182.98,182.91,5.46709232]
[1752823059908,12.47566313,182.98,182.92,11.73566313]
[1752823060105,12.47566313,182.98,182.91,5.46709232]
[1752823060426,0.06,182.98,182.94,11.73566313]
[1752823060726,0.06,182.98,182.95,11.73566313]
[1752823061309,0.06,182.98,182.96,11.73566313]
[1752823062533,0.06,182.98,182.94,35.72607089]
[1752823062534,0.06,182.98,182.97,11.73566313]
[1752823062912,0.06,182.98,182.96,5.46548989]
[1752823063117,0.06,182.98,182.97,11.73566313]
[1752823064435,0.1,183.01,182.97,37.73566313]
[1752823064603,0.1,183.01,183.0,17.200144]
[1752823065113,0.1,183.01,183.0,47.380144]
[1752823066214,0.1,183.01,183.0,35.64448087]
[1752823066413,0.1,183.01,183.0,47.380144]
[1752823068634,0.1,183.01,183.0,85.11580713]
[1752823069031,1e-08,183.01,183.0,101.9004911]
[1752823070410,0.06,183.04,183.03,26.0]
[1752823070737,1e-08,183.04,183.03,84.6003471]
[1752823070905,1e-08,183.04,183.03,60.53029082]
[1752823071110,1e-08,183.06,183.04,16.78468397]
[1752823071325,1e-08,183.06,183.05,59.12664592]
[1752823071833,0.1,183.11,183.07,26.0]
[1752823072024,0.1,183.11,183.1,11.73566313]
[1752823072227,0.1,183.11,183.1,44.50907101]
[1752823072940,0.1,183.11,183.1,49.97056746]
[1752823073520,0.1,183.11,183.1,38.23490433]
[1752823073736,0.1,183.11,183.1,49.97056746]
[1752823075238,1e-08,183.11,183.1,92.75525143]
[1752823075432,1e-08,183.11,183.1,64.23490433]
[1752823075645,1e-08,183.11,183.1,75.97056746]
[1752823077547,1e-08,183.11,183.1,73.23715958]
[1752823078040,1e-08,183.11,183.1,73.11715958]
[1752823078214,1e-08,183.11,183.1,61.36149645]
[1752823078933,1e-08,183.11,183.1,73.09715958]
[1752823079254,1e-08,183.11,183.1,75.78418486]
[1752823082446,0.68000001,183.11,183.1,44.28268841]
[1752823083146,0.68000001,183.11,183.1,14.42268841]
[1752823083725,1e-08,183.11,183.1,19.88418486]
[1752823084557,1e-08,183.11,183.1,48.40453196]
[1752823084850,0.06,183.15,183.13,26.0]
[1752823085047,0.06,183.15,183.14,41.59566313]
[1752823085350,0.1,183.17,183.16,26.0]
[1752823085658,30.1,183.17,183.16,67.59566313]
[1752823085823,30.1,183.17,183.16,84.3803471]
[1752823086030,30.1,183.17,183.16,89.84005445]
[1752823086245,0.06,183.19,183.17,16.78468397]
[1752823086448,0.06,183.19,183.18,41.59566313]
[1752823086640,1e-08,183.2,183.19,16.78468397]
[1752823086969,1e-08,183.2,183.19,28.5203471]
[1752823087443,1e-08,183.2,183.19,11.73566313]
[1752823087839,0.68000001,183.2,183.19,41.59566313]
[1752823088035,0.68000001,183.2,183.16,5.45970735]
[1752823088036,26.0,183.18,183.13,17.19626488]
[1752823088235,26.0,183.18,183.13,5.46060175]
[1752823088451,26.0,183.14,183.12,5.46084526]
[1752823088633,26.68,183.14,183.12,17.19650839]
[1752823088834,26.68,183.14,183.13,11.73566313]
[1752823089141,26.68,183.14,183.13,41.59566313]
[1752823089547,26.68,183.14,183.13,47.05626488]
[1752823089732,26.68,183.14,183.13,17.19626488]
[1752823089926,30.0,183.17,183.13,17.19626488]
[1752823090136,26.0,183.15,183.14,11.73566313]
[1752823090852,30.0,183.17,183.14,11.73566313]
[1752823091061,30.68,183.17,183.16,11.73566313]
[1752823091464,30.0,183.17,183.16,47.05537048]
[1752823092462,30.0,183.17,183.16,35.31970735]
[1752823092642,30.0,183.17,183.16,47.05537048]
[1752823095747,30.68,183.17,183.16,47.05537048]
[1752823096049,30.68,183.17,183.16,35.31970735]
[1752823096253,30.68,183.17,183.16,47.05537048]
[1752823096454,30.68,183.17,183.16,35.31970735]
[1752823096771,30.68,183.17,183.15,41.59566313]
[1752823097067,0.68,183.16,183.15,41.59566313]
[1752823097766,30.0,183.17,183.15,41.59566313]
[1752823097767,30.0,183.17,183.16,5.45970735]
[1752823097945,30.0,183.17,183.16,47.05537048]
[1752823098963,30.0,183.17,183.16,35.31970735]
[1752823099273,30.0,183.17,183.16,47.03537048]
[1752823099468,30.0,183.17,183.16,17.19537048]
[1752823099766,30.68,183.17,183.16,47.03537048]
[1752823100353,30.0,183.17,183.16,47.03537048]
[1752823100668,1e-08,183.2,183.16,60.68463887]
[1752823100846,1e-08,183.2,183.19,11.73566313]
[1752823101045,1e-08,183.2,183.19,42.12154445]
[1752823101489,1e-08,183.2,183.19,41.57566313]
[1752823101650,1e-08,183.2,183.19,47.03447638]
[1752823102168,1e-08,183.2,183.19,17.19447638]
[1752823102358,1e-08,183.2,183.19,47.03447638]
[1752823102953,1e-08,183.2,183.19,17.19447638]
[1752823103158,1e-08,183.2,183.19,47.03447638]
[1752823105646,1e-08,183.2,183.19,17.19447638]
[1752823105849,1e-08,183.2,183.19,47.03447638]
[1752823106064,1e-08,183.2,183.19,17.19447638]
[1752823106262,1e-08,183.2,183.19,47.03447638]
[1752823107064,1e-08,183.2,183.19,17.19447638]
[1752823107281,0.68000001,183.2,183.19,17.19447638]
[1752823108053,0.68000001,183.2,183.17,5.45940929]
[1752823108387,12.41566314,183.2,183.17,5.45940929]
[1752823108562,11.73566314,183.2,183.17,5.45940929]
[1752823108876,0.68,183.19,183.17,17.19507242]
[1752823109071,0.68,183.19,183.16,5.45964528]
[1752823110084,12.41566313,183.19,183.15,5.46000546]
[1752823110254,1e-08,183.2,183.15,5.46000546]
[1752823110455,1e-08,183.2,183.11,11.73566313]
[1752823110456,13.38926313,183.17,183.11,11.73566313]
[1752823110678,0.68,183.16,183.11,11.73566313]
[1752823111056,12.41566313,183.16,183.07,19.11791034]
[1752823111287,12.41566313,183.16,183.1,11.73566313]
[1752823111288,0.68,183.15,183.1,11.73566313]
[1752823111460,0.68,183.15,183.1,41.57566313]
[1752823111662,12.41566313,183.15,183.1,29.84]
[1752823111863,0.68,183.14,183.1,29.84]
[1752823112072,0.68,183.14,183.11,5.46119818]
[1752823112254,0.68,183.14,183.1,5.46142225]
[1752823112458,0.68,183.14,183.09,41.57566313]
[1752823112459,12.41566313,183.14,183.09,35.30174509]
[1752823112762,0.68,183.13,183.06,26.03]
[1752823113089,11.73566313,183.11,183.06,5.49263048]
[1752823113267,0.68,183.1,183.06,5.49263048]
[1752823113974,0.68,183.1,183.08,11.73566313]
[1752823114295,6.0671,183.13,183.06,17.22829361]
[1752823114296,0.68,183.09,183.06,17.22829361]
[1752823114454,0.68,183.09,183.07,11.73566313]
[1752823114659,0.68,183.12,183.06,19.14935505]
[1752823114862,0.68,183.12,183.09,11.73566313]
[1752823115081,11.73566313,183.16,183.11,11.73566313]
[1752823115279,0.68,183.14,183.1,11.73566313]
[1752823115492,0.68,183.14,183.09,11.73566313]
[1752823115669,0.68,183.14,183.1,11.73566313]
[1752823116192,0.68,183.14,183.1,5.46125342]
[1752823117176,12.41566313,183.14,183.09,5.46175212]
[1752823117377,11.73566313,183.12,183.07,5.46239143]
[1752823117685,0.68,183.11,183.07,17.19805456]
[1752823117881,0.68,183.1,183.07,17.19805456]
[1752823118087,0.68,183.1,183.07,5.46239143]
[1752823118292,11.73566313,183.12,183.07,5.46239143]